{"text_format":"1","workbook":"xlsx","n_sheets":2,"sheets":["Zamena","Recnik"],"not_rendered":{"charts":0,"images":0,"macros":1,"external_links":0,"defined_names":0,"comments":0,"pivot_tables":0},"unopened":[],"bounds":{"document_bytes":16777216,"sheet_cells":100000,"rows_first":2000,"rows_last":500,"rows_between":2000,"halvings":0,"cell_chars":16384,"cell_head_chars":4096},"cells_cut":0,"cells_raw":0,"read":"whole","date_system":"1900"}

{"sheet":"Zamena","index":0,"n_rows":32,"n_cols":5,"rows_kept":32,"cut":false,"hidden":false,"merged":[]}
["Original","Replace"]
["a","<",null,null,{"$f":"OFFSET($A$1,RANDBETWEEN(1,32),0)","v":"h"}]
["ā","="]
["i",">"]
["ī","?"]
["u","@"]
["ū","A"]
["e","B"]
["o","C"]
["ṃ","D"]
["k","E"]
["g","F"]
["ṅ","G"]
["c","H"]
["đ","I"]
["ñ","J"]
["ṭ","K"]
["ḍ","L"]
["ṇ","M"]
["t","N"]
["d","O"]
["n","P"]
["p","Q"]
["b","R"]
["m","S"]
["y","T"]
["r","U"]
["l","V"]
["ḷ","W"]
["v","X"]
["s","Y"]
["h","Z"]

{"sheet":"Recnik","index":1,"n_rows":46,"n_cols":4,"rows_kept":46,"cut":false,"hidden":false,"merged":[]}
["Reč"," Značenje",null,"SortPom"]
["āṃc",null,null,{"$f":"ArraySubstitute(A2,Zamena!$A$2:$A$32,Zamena!$B$2:$B$32)","v":"=DH"}]
["iṃđh",null,null,{"$f":"ArraySubstitute(A3,Zamena!$A$2:$A$32,Zamena!$B$2:$B$32)","v":">DIZ"}]
["ūūs",null,null,{"$f":"ArraySubstitute(A4,Zamena!$A$2:$A$32,Zamena!$B$2:$B$32)","v":"AAY"}]
["ṃul",null,null,{"$f":"ArraySubstitute(A5,Zamena!$A$2:$A$32,Zamena!$B$2:$B$32)","v":"D@V"}]
["ṃđgh",null,null,{"$f":"ArraySubstitute(A6,Zamena!$A$2:$A$32,Zamena!$B$2:$B$32)","v":"DIFZ"}]
["khbt",null,null,{"$f":"ArraySubstitute(A7,Zamena!$A$2:$A$32,Zamena!$B$2:$B$32)","v":"EZRN"}]
["gbhc",null,null,{"$f":"ArraySubstitute(A8,Zamena!$A$2:$A$32,Zamena!$B$2:$B$32)","v":"FRZH"}]
["ghthñ",null,null,{"$f":"ArraySubstitute(A9,Zamena!$A$2:$A$32,Zamena!$B$2:$B$32)","v":"FZNZJ"}]
["ṅhi",null,null,{"$f":"ArraySubstitute(A10,Zamena!$A$2:$A$32,Zamena!$B$2:$B$32)","v":"GZ>"}]
["cch",null,null,{"$f":"ArraySubstitute(A11,Zamena!$A$2:$A$32,Zamena!$B$2:$B$32)","v":"HHZ"}]
["chkh",null,null,{"$f":"ArraySubstitute(A12,Zamena!$A$2:$A$32,Zamena!$B$2:$B$32)","v":"HZEZ"}]
["chnb",null,null,{"$f":"ArraySubstitute(A13,Zamena!$A$2:$A$32,Zamena!$B$2:$B$32)","v":"HZPR"}]
["chbū",null,null,{"$f":"ArraySubstitute(A14,Zamena!$A$2:$A$32,Zamena!$B$2:$B$32)","v":"HZRA"}]
["đḍṇ",null,null,{"$f":"ArraySubstitute(A15,Zamena!$A$2:$A$32,Zamena!$B$2:$B$32)","v":"ILM"}]
["đḍh",null,null,{"$f":"ArraySubstitute(A16,Zamena!$A$2:$A$32,Zamena!$B$2:$B$32)","v":"ILZ"}]
["đdđh",null,null,{"$f":"ArraySubstitute(A17,Zamena!$A$2:$A$32,Zamena!$B$2:$B$32)","v":"IOIZ"}]
["đhṭhī",null,null,{"$f":"ArraySubstitute(A18,Zamena!$A$2:$A$32,Zamena!$B$2:$B$32)","v":"IZKZ?"}]
["đhḷk",null,null,{"$f":"ArraySubstitute(A19,Zamena!$A$2:$A$32,Zamena!$B$2:$B$32)","v":"IZWE"}]
["ñrc",null,null,{"$f":"ArraySubstitute(A20,Zamena!$A$2:$A$32,Zamena!$B$2:$B$32)","v":"JUH"}]
["ṭheṅ",null,null,{"$f":"ArraySubstitute(A21,Zamena!$A$2:$A$32,Zamena!$B$2:$B$32)","v":"KZBG"}]
["ṭhoḷ",null,null,{"$f":"ArraySubstitute(A22,Zamena!$A$2:$A$32,Zamena!$B$2:$B$32)","v":"KZCW"}]
["ḍhcph",null,null,{"$f":"ArraySubstitute(A23,Zamena!$A$2:$A$32,Zamena!$B$2:$B$32)","v":"LZHQZ"}]
["ḍhsṇ",null,null,{"$f":"ArraySubstitute(A24,Zamena!$A$2:$A$32,Zamena!$B$2:$B$32)","v":"LZYM"}]
["ṇphbh",null,null,{"$f":"ArraySubstitute(A25,Zamena!$A$2:$A$32,Zamena!$B$2:$B$32)","v":"MQZRZ"}]
["ṇlṭh",null,null,{"$f":"ArraySubstitute(A26,Zamena!$A$2:$A$32,Zamena!$B$2:$B$32)","v":"MVKZ"}]
["tṅ",null,null,{"$f":"ArraySubstitute(A27,Zamena!$A$2:$A$32,Zamena!$B$2:$B$32)","v":"NG"}]
["thkhḍh",null,null,{"$f":"ArraySubstitute(A28,Zamena!$A$2:$A$32,Zamena!$B$2:$B$32)","v":"NZEZLZ"}]
["dhṃṭh",null,null,{"$f":"ArraySubstitute(A29,Zamena!$A$2:$A$32,Zamena!$B$2:$B$32)","v":"OZDKZ"}]
["dhth",null,null,{"$f":"ArraySubstitute(A30,Zamena!$A$2:$A$32,Zamena!$B$2:$B$32)","v":"OZNZ"}]
["dhyh",null,null,{"$f":"ArraySubstitute(A31,Zamena!$A$2:$A$32,Zamena!$B$2:$B$32)","v":"OZTZ"}]
["nīđh",null,null,{"$f":"ArraySubstitute(A32,Zamena!$A$2:$A$32,Zamena!$B$2:$B$32)","v":"P?IZ"}]
["nṃe",null,null,{"$f":"ArraySubstitute(A33,Zamena!$A$2:$A$32,Zamena!$B$2:$B$32)","v":"PDB"}]
["nñch",null,null,{"$f":"ArraySubstitute(A34,Zamena!$A$2:$A$32,Zamena!$B$2:$B$32)","v":"PJHZ"}]
["phthḍ",null,null,{"$f":"ArraySubstitute(A35,Zamena!$A$2:$A$32,Zamena!$B$2:$B$32)","v":"QZNZL"}]
["bđa",null,null,{"$f":"ArraySubstitute(A36,Zamena!$A$2:$A$32,Zamena!$B$2:$B$32)","v":"RI<"}]
["bhum",null,null,{"$f":"ArraySubstitute(A37,Zamena!$A$2:$A$32,Zamena!$B$2:$B$32)","v":"RZ@S"}]
["bhkhñ",null,null,{"$f":"ArraySubstitute(A38,Zamena!$A$2:$A$32,Zamena!$B$2:$B$32)","v":"RZEZJ"}]
["ychd",null,null,{"$f":"ArraySubstitute(A39,Zamena!$A$2:$A$32,Zamena!$B$2:$B$32)","v":"THZO"}]
["yṇi",null,null,{"$f":"ArraySubstitute(A40,Zamena!$A$2:$A$32,Zamena!$B$2:$B$32)","v":"TM>"}]
["yb",null,null,{"$f":"ArraySubstitute(A41,Zamena!$A$2:$A$32,Zamena!$B$2:$B$32)","v":"TR"}]
["rbe",null,null,{"$f":"ArraySubstitute(A42,Zamena!$A$2:$A$32,Zamena!$B$2:$B$32)","v":"URB"}]
["ḷṇdh",null,null,{"$f":"ArraySubstitute(A43,Zamena!$A$2:$A$32,Zamena!$B$2:$B$32)","v":"WMOZ"}]
["vchḷ",null,null,{"$f":"ArraySubstitute(A44,Zamena!$A$2:$A$32,Zamena!$B$2:$B$32)","v":"XHZW"}]
["stl",null,null,{"$f":"ArraySubstitute(A45,Zamena!$A$2:$A$32,Zamena!$B$2:$B$32)","v":"YNV"}]
["hchu",null,null,{"$f":"ArraySubstitute(A46,Zamena!$A$2:$A$32,Zamena!$B$2:$B$32)","v":"ZHZ@"}]